Cogmind - Beta 10.2 @@@ ROGUE MODE // 2020.11.08 @ 21:19:03 // Halloween2020/ForbiddenLore Player: Sherlockkat Result: Destroyed by as-71954 with Assembled Blade Performance ------------- Evolutions (0) 0 Regions Visited (4) 800 Robots Destroyed (45) 225 Value Destroyed (803) 803 Prototype IDs (26) 520 Alien Tech Used (0) 0 Bonus (300) 300 TOTAL SCORE: 2648 Bonus ------- Aligned with FarCom 300 Cogmind --------- Core Integrity 0/250 Matter 285/300 Energy 77/100 System Corruption 4% Temperature Cool (5) Movement Rolling (110) Ox3 Location -9/Mines Parts ------- > --- POWER (1) -------- (None) > --- PROPULSION (2) --- Wheel > --- UTILITY (2) ------ Large Storage Unit Large Storage Unit > --- WEAPON (2) ------- EM Pulse Gun Light Assault Rifle > --- INVENTORY (16) --- Ion Engine Improved Heat Sink Modified TNC Propulsion Shielding Particle Gun Light Assault Rifle Light Cannon Grenade Launcher Field Lobotomy Kit Longsword +1 Peak State ------------ > --- POWER ------------ Light Ion Engine > --- PROPULSION ------- Light Treads Light Treads > --- UTILITY ---------- Large Storage Unit Large Storage Unit > --- WEAPON ----------- Light Assault Rifle Light Assault Rifle > --- INVENTORY -------- Ion Engine Wheel Improved Heat Sink Propulsion Shielding EM Pulse Gun Particle Gun Light Assault Rifle Light Cannon Grenade Launcher Field Lobotomy Kit Longsword +1 [Rating: 10] Favorites ----------- Power Light Ion Engine Engine Light Ion Engine Propulsion Light Treads Treads Light Treads Wheel Wheel Utility Large Storage Unit Device Heat Sink Storage Large Storage Unit Protection Propulsion Shielding Weapon Light Assault Rifle Energy Gun Medium Laser Energy Cannon Beam Cannon Ballistic Gun Light Assault Rifle Launcher Grenade Launcher Build | -11 -10 -10 -10 -9 ------- Run | Scr Mat Min Exi Min Slots Evolved . | . . . . . Power . | . . . . . Propulsion . | . . . . . Utility . | . . . . . Weapon . | . . . . . Parts Attached 40 | 6 22 5 1 6 Power 4 | 1 1 2 . . Engine 4 | 1 1 2 . . Core . | . . . . . Reactor . | . . . . . Propulsion 12 | 2 8 . . 2 Treads 10 | 2 8 . . . Leg . | . . . . . Wheel 2 | . . . . 2 Hover . | . . . . . Flight . | . . . . . Utility 5 | 1 3 . 1 . Device 1 | . 1 . . . Storage 3 | 1 1 . 1 . Processor . | . . . . . Hackware . | . . . . . Protection 1 | . 1 . . . Artifact . | . . . . . Weapon 19 | 2 10 3 . 4 Energy Gun 3 | 1 1 . . 1 Energy Cannon 1 | . . 1 . . Ballistic Gun 9 | 1 5 2 . 1 Ballistic Cannon . | . . . . . Launcher 6 | . 4 . . 2 Special Weapon . | . . . . . Impact Weapon . | . . . . . Slashing Weapon . | . . . . . Piercing Weapon . | . . . . . Special Melee Weapon . | . . . . . Unidentified Prototypes . | . . . . . Parts Lost 9 | . 1 3 . 5 Power 2 | . . 1 . 1 Propulsion 4 | . 1 . . 3 Utility . | . . . . . Weapon 3 | . . 2 . 1 Highest Loss Streak 2 | . 1 2 . 2 Average Slot Usage (%) 96 | . 97 100 100 82 Engine 13 | . 14 14 14 6 Treads 25 | . 27 28 28 8 Wheel 1 | . . . . 10 Device 4 | . 8 . . . Storage 16 | . 14 14 20 28 Protection 6 | . 4 14 7 . Energy Gun 6 | . 11 . . 7 Ballistic Gun 20 | . 16 24 28 20 Naked Turns . | . . . . . Heaviest Build 37 | 10 23 26 37 37 Greatest Support 40 | 40 40 40 40 40 Greatest Overweight (x) 3 | . 3 . . 3 Average Overweight (x) . | . . . . 2 Largest Inventory Capacity 16 | 6 10 10 16 16 Average Capacity 9 | 5 6 10 12 16 Most Carried 12 | 5 8 10 12 12 Average Carried 7 | 2 5 8 10 10 Final Capacity 16 | 6 10 10 16 16 Final Carried 12 | 4 8 9 12 10 Class Distribution -------------------- 100% | Mutant Dominant Class ---------------- Mutant | -10/Materials Mutant | -10/Mines Mutant | -10/Exiles Mutant | -9/Mines Resources | -11 -10 -10 -10 -9 ----------- Run | Scr Mat Min Exi Min Matter Collected 855 | 258 361 122 . 114 Remotely . | . . . . . Salvage Created 1193 | . 692 422 . 79 Parts 82 | . 47 30 . 5 Haulers Intercepted 2 | . 2 . . . Recyclers Shooed . | . . . . . Parts Field Recycled . | . . . . . Retrieved Matter . | . . . . . Parts Self-Destructed . | . . . . . Prevented . | . . . . . Kills | -11 -10 -10 -10 -9 ------- Run | Scr Mat Min Exi Min Combat Hostiles Destroyed 36 | . 14 14 . 8 Guns 23 | . 10 10 . 3 Cannons 4 | . . 4 . . AOE 9 | . 4 . . 5 Classes Destroyed 10 | . 8 1 . 1 Worker 4 | . 4 . . . Builder 2 | . 2 . . . Tunneler 1 | . . 1 . . Hauler 2 | . 2 . . . Recycler 2 | . 2 . . . Operator 1 | . 1 . . . Watcher 2 | . 2 . . . Swarmer 17 | . 6 8 . 3 Grunt 14 | . 8 6 . . Assembled 5 | . . . . 5 Best Kill Streak 5 | . 5 4 . 3 Combat Bots Only 3 | . 3 3 . 3 Max Kills in Single Turn 3 | . 3 1 . 3 Gunslinging . | . . . . . Exploded 3 | . 2 . . 3 Melee . | . . . . . Uniques/NPCs Destroyed . | . . . . . Combat | -11 -10 -10 -10 -9 -------- Run | Scr Mat Min Exi Min Damage Taken 1334 | . 307 614 . 413 Core 250 | . 92 57 . 101 Absorbed by Shields . | . . . . . Core Remaining (%) 100 | 100 . . . . Volleys Fired 135 | . 68 43 . 24 Largest 2 | . 2 2 . 2 Hottest 80 | . 70 80 . 60 Shots Fired 251 | . 122 86 . 43 Gun 228 | . 113 76 . 39 Cannon 10 | . . 10 . . Launcher 13 | . 9 . . 4 Special . | . . . . . Kinetic 170 | . 64 75 . 31 Thermal 60 | . 49 11 . . Explosive 13 | . 9 . . 4 Electromagnetic 8 | . . . . 8 Robot Hit Streak 11 | . 11 8 . 3 Robot Miss Streak 4 | . 3 2 . 4 Penetration Max . | . . . . . Secondary Targets 2 | . . 2 . . Max Gunslinging Chain 1 | . . 1 . . Shots Hit Robots 150 | . 74 58 . 18 Core Hits 93 | . 46 30 . 17 Critical Hits 1 | . . 1 . . Critical Kills . | . . . . . Critical Parts Destroyed 1 | . . 1 . . Melee Attacks . | . . . . . Impact . | . . . . . Slashing . | . . . . . Piercing . | . . . . . Sneak Attacks . | . . . . . Combat Hostiles . | . . . . . Follow-up Attacks . | . . . . . Damage Inflicted 2150 | . 1231 555 . 364 Guns 1223 | . 689 398 . 136 Cannons 157 | . . 157 . . Explosions 770 | . 542 . . 228 Melee . | . . . . . Ramming . | . . . . . Kinetic 766 | . 290 385 . 91 Thermal 569 | . 399 170 . . Explosive 770 | . 542 . . 228 Electromagnetic 45 | . . . . 45 Impact . | . . . . . Slashing . | . . . . . Piercing . | . . . . . Highest Corruption 4 | . . . . 4 Average Corruption 4 | . . . . 4 Corruption Purged . | . . . . . Effects 5 | . . . . 5 Matter Fused 1 | . . . . 1 Heat Flow Errors 1 | . . . . 1 Data Loss (minor) 1 | . . . . 1 Targeting Errors 1 | . . . . 1 Weapon Failures 1 | . . . . 1 Overload Shots . | . . . . . Overflow Damage . | . . . . . Projectiles . | . . . . . Explosions . | . . . . . Melee . | . . . . . Knockbacks . | . . . . . Impact . | . . . . . Kinetic . | . . . . . Secondary . | . . . . . Self-Inflicted Damage 142 | . 51 . . 91 Shots 6 | . 2 . . 4 Rammed . | . . . . . Targets Rammed . | . . . . . Kicked . | . . . . . Crushed . | . . . . . Highest Temperature 207 | . 60 139 . 207 Average Temperature 37 | . 17 57 . 68 Received Heat Transfer 345 | . 102 183 . 60 Siege Activations . | . . . . . Robots Corrupted . | . . . . . Combat Hostiles . | . . . . . Parts Fried . | . . . . . Impact Corruptions . | . . . . . Robots Melted . | . . . . . Combat Hostiles . | . . . . . Parts Melted 4 | . 3 1 . . Heat Transferred 1554 | . 1184 370 . . Parts Sabotaged . | . . . . . Parts Stolen . | . . . . . Parts Stripped . | . . . . . Power Chain Reactions . | . . . . . Missiles Intercepted . | . . . . . Alert | -11 -10 -10 -10 -9 ------- Run | Scr Mat Min Exi Min Peak Influence 356 | . 349 356 . 70 Initial 61 | . . 61 . . Average 137 | . 144 195 . 60 Maximum Alert Level 1 | . 1 1 . . Low Security (%) 76 | 100 71 66 . 100 Level 1 23 | . 28 33 . . Level 2 . | . . . . . Level 3 . | . . . . . Level 4 . | . . . . . Level 5 . | . . . . . High Security . | . . . . . Max Security . | . . . . . Squads Dispatched 4 | . 4 . . . Investigation 1 | . 1 . . . Extermination . | . . . . . Reinforcement 3 | . 3 . . . Assault . | . . . . . Garrison . | . . . . . Intercept . | . . . . . Construction Impeded . | . . . . . Haulers Reinforced . | . . . . . Stealth | -11 -10 -10 -10 -9 --------- Run | Scr Mat Min Exi Min Distress Signals 2 | . 1 . . 1 Communications Jammed . | . . . . . Distress Signals . | . . . . . Times Spotted 61 | . 34 16 . 11 Peak Tracking Total 4 | . 4 3 . 4 Tactical Retreats 3 | . . 2 . 1 Traps | -11 -10 -10 -10 -9 ------- Run | Scr Mat Min Exi Min Traps Triggered 5 | . 5 . . . Indirectly . | . . . . . Trap Hack Attempts . | . . . . . Triggered . | . . . . . Disarmed . | . . . . . Reprogrammed . | . . . . . Reused . | . . . . . Traps Extracted . | . . . . . Installed . | . . . . . Triggered . | . . . . . Machines | -11 -10 -10 -10 -9 ---------- Run | Scr Mat Min Exi Min Machines Disabled 2 | . 2 . . . Max in Single Turn 1 | . 1 . . . Machines Sabotaged . | . . . . . Garrisons Compromised . | . . . . . Overloaded Fab Kills . | . . . . . Fab Network Shutdowns . | . . . . . Hacking | -11 -10 -10 -10 -9 --------- Run | Scr Mat Min Exi Min Machines Accessed 5 | . 4 . 1 . Terminals 4 | . 4 . . . Fabricators . | . . . . . Repair Stations . | . . . . . Recycling Units . | . . . . . Scanalyzers . | . . . . . Garrison Access . | . . . . . Total Hacks 10 | . 9 . 1 . Successful 5 | . 4 . 1 . Failed 5 | . 5 . . . Catastrophic . | . . . . . Database Lockouts . | . . . . . Manual 4 | . 3 . 1 . Terminals 9 | . 9 . . . Fabricators . | . . . . . Repair Stations . | . . . . . Recycling Units . | . . . . . Scanalyzers . | . . . . . Garrison Access . | . . . . . Terminal Hacks 5 | . 4 . 1 . Prototype ID Bank 1 | . 1 . . . Alert Level 1 | . 1 . . . Zone Layout 2 | . 2 . . . EX-Prototype ID Bank 1 | . . . 1 . Fabricator Hacks . | . . . . . Repair Station Hacks . | . . . . . Recycling Unit Hacks . | . . . . . Scanalyzer . | . . . . . Garrison Access Hacks . | . . . . . Unauthorized Hacks . | . . . . . Terminals . | . . . . . Fabricators . | . . . . . Repair Stations . | . . . . . Recycling Units . | . . . . . Scanalyzers . | . . . . . Garrison Access . | . . . . . Data Cores Recovered . | . . . . . Used . | . . . . . Hacking Detections 3 | . 3 . . . Full Trace Events . | . . . . . Feedback Events . | . . . . . Feedback Blocked . | . . . . . Robot Schematics Acquired . | . . . . . Robots Built . | . . . . . Matter . | . . . . . Time . | . . . . . Total Robot Build Rating . | . . . . . Part Schematics Acquired . | . . . . . Parts Built . | . . . . . Matter . | . . . . . Time . | . . . . . Total Part Build Rating . | . . . . . Parts Repaired . | . . . . . Time . | . . . . . Parts Recycled . | . . . . . Recycled Matter . | . . . . . Retrieved Matter . | . . . . . Retrieved Components . | . . . . . Parts Scanalyzed . | . . . . . Part Schematics Acquired . | . . . . . Parts Damaged . | . . . . . Bothacking | -11 -10 -10 -10 -9 ------------ Run | Scr Mat Min Exi Min Used RIF Installer . | . . . . . Robots Hacked . | . . . . . Non-combat . | . . . . . Combat . | . . . . . Robot Hacks Applied . | . . . . . Relay Couplers Released . | . . . . . Robots Rewired . | . . . . . Allies Hacked . | . . . . . Hacks Repelled . | . . . . . Allies | -11 -10 -10 -10 -9 -------- Run | Scr Mat Min Exi Min Total Allies . | . . . . . Largest Group . | . . . . . Highest-Rated Group . | . . . . . Highest-Rated Ally . | . . . . . Total Orders . | . . . . . Ally Attacks . | . . . . . Total Damage . | . . . . . Kills . | . . . . . Allies Corrupted . | . . . . . Allies Melted . | . . . . . Intel | -11 -10 -10 -10 -9 ------- Run | Scr Mat Min Exi Min Robot Analysis Total . | . . . . . Derelict Logs Recovered 3 | . . 1 . 2 Drone Launches . | . . . . . Drone Recoveries . | . . . . . Exploration | -11 -10 -10 -10 -9 ------------- Run | Scr Mat Min Exi Min Turns Passed 2718 | 120 1314 560 384 340 Spaces Moved 1430 | 62 655 267 238 208 Core 4 | 2 2 . . . Treads 1261 | 60 653 267 238 43 Legs . | . . . . . Wheels 165 | . . . . 165 Hover . | . . . . . Flight . | . . . . . Fastest Speed 50 | 50 160 160 160 90 Average Speed 153 | 156 160 160 160 118 Slowest Speed 200 | 160 200 160 160 160 Overloaded Moves . | . . . . . Propulsion Burnouts . | . . . . . Robots Hopped . | . . . . . Cave-ins Triggered . | . . . . . Exploration Rate (%) 48 | 6 91 39 61 44 Regions Visited 4 Branch Regions 3 Pre-discovered Areas . | . . . . . Known Exits Taken . | . . . . . Unknown Exits Taken 4 | 1 1 1 1 . Scrap Searched 1 | . . 1 . . Spaces Dug . | . . . . . Terrain Destroyed 93 | . 55 . . 38 Melee . | . . . . . Projectile . | . . . . . AOE 93 | . 55 . . 38 Terrain Rammed . | . . . . . Walls Destroyed . | . . . . . Machines Disabled . | . . . . . Actions | -11 -10 -10 -10 -9 --------- Run | Scr Mat Min Exi Min Total 1723 | 83 806 329 241 264 Wait 93 | 8 50 9 . 26 Move 1426 | 61 654 266 237 208 Hop . | . . . . . Pick Up 19 | 6 6 4 3 . Fast Attach 18 | 6 11 . . 1 Attach 5 | . . 3 . 2 Detach . | . . . . . Swap 17 | . 11 2 1 3 Drop 10 | 2 6 2 . . Fire 135 | . 68 43 . 24 Melee . | . . . . . Ram . | . . . . . Kick . | . . . . . Crush . | . . . . . Escape Stasis . | . . . . . Rewire . | . . . . . Trap . | . . . . . Miscellaneous . | . . . . . Route ------- -11/Scrapyard -10/Materials (discovered 4 exits: [*Mat x3] / [*Min]) -10/Mines (discovered 2 exits: [*Mat] / *Exi) -10/Exiles (discovered 2 exits: [*Min x2]) -9/Mines History --------- Turn | Location | Event 28 | -11/Scrapyard | Discovered new exit (range 16) 121 | -11/Scrapyard | Entered Materials 300 | -10/Materials | Build established: Mutant 303 | -10/Materials | Discovered new exit (range 15) 684 | -10/Materials | Discovered new exit (range 8) 892 | -10/Materials | Discovered new exit (range 12) 1374 | -10/Materials | Discovered new exit (range 16) 1435 | -10/Materials | Entered Mines 1474 | -10/Mines | Learned Materials non-interactive machine intel 1516 | -10/Mines | Found a hidden stash of uninstalled traps 1734 | -10/Mines | Core integrity fell below 50% 1950 | -10/Mines | Discovered new exit (range 10) 1987 | -10/Mines | Deemed a non-threat by the Exiles lab entrance 1989 | -10/Mines | Discovered new exit (range 5) 1995 | -10/Mines | Entered Exiles 2016 | -10/Exiles | Discovered new exit (range 15) 2035 | -10/Exiles | Met 8R-AWN 2061 | -10/Exiles | Met EX-HEX 2107 | -10/Exiles | Met EX-BIN 2136 | -10/Exiles | Aligned with FarCom system 2138 | -10/Exiles | Given EX-Vault access code 2183 | -10/Exiles | Opened EX-Vault 2207 | -10/Exiles | Found Field Lobotomy Kit 2211 | -10/Exiles | Found Longsword +1 2217 | -10/Exiles | Found Modified TNC 2250 | -10/Exiles | Warned to stay clear of 0b10 Research branches 2302 | -10/Exiles | Met EX-DEC 2358 | -10/Exiles | Discovered new exit (range 14) 2379 | -10/Exiles | Stole three prototypes: Field Lobotomy Kit, Longsword +1, Modified TNC 2379 | -10/Exiles | Entered Mines 2380 | -9/Mines | Assembled infested the area 2536 | -9/Mines | Core integrity fell below 20% 2590 | -9/Mines | Learned location of 1 exit from Materials 2608 | -9/Mines | Learned location of 1 exit from Materials 2719 | -9/Mines | Destroyed by as-71954 with Assembled Blade Last Messages --------------- 02543_ Acquired 7 matter. 02584_ System corrupted: EM Pulse Gun failed to cycle. 02587_ as-89968 destroyed. 02587_ System corrupted: Lgt. Assault Rifle targeting data glitched. 02590_ Acquired derelict log, extracted data. Data stored: Materials exits (x1). 02592_ Acquired 18 matter. 02599_ System corrupted: Matter fused (-9). 02608_ Acquired derelict log, extracted data. Data stored: Materials exits (x1). 02657_ K-01 Serf cleans the Plasma Injector. 02661_ K-01 Serf collects debris. 02662_ Acquired 17 matter. 02665_ K-01 Serf collects debris. 02682_ R-06 Scavenger collects Wheel. 02685_ Acquired 16 matter. 02688_ Acquired Wheel. 02690_ System corrupted: Component data lost. 02690_ R-06 Scavenger collects Seismic Analyzer. 02717_ Wheel destroyed. Map ----- +----------------------------------------------------+ | | | | | | | | | | | | | | | | | | | | | | | | | ?????????????????????????????????????????????????? | | ?????????????????????????????????????????????????? | | ??##????????????????????????####?????????????????? | | ??? ????????????????????#### ##????????????????? | | ???"" #####?????????????## #????????????????? | | ???"" ##???????????# #????????????????? | | ????? % ##???####### """ ##????????????????? | | ????????# %! ##?## ## """ #?????????????????? | | ????????# %!! ###! """ ##????????????????? | | ????????# %= ##???????????????? | | ????????## = ## #???????????????? | | ?????????## ##### #???????????????? | | ?????????## ##???# ##??????????????? | | ????????## #????# @a ####???????????? | | ???????## #????## =###?????????# | | ???????# ##?????# * ! % ##???????## | | ???????# ###??????# ## = #???????# | | ???????# %##????????## #### ######### | | ???????## |#??????????######??## | | ????????# #???????????????????## | | ????????# ????????????????????# ######## # | | ????????## ????????????????????#! ###??????# # | | ?????????## ??????????????????# !%$#???????? # | | ??????????## ?????????????????# = #??????? ### | | ???????????# ????????????????# #??????# ??# | | ???????????? ??????????????? ??????#???# | | ????????????# ????????????* ??????????# | | ????????????? ????????????% ?????????# | | ?????????????% ????????????|=*! ?????????# | | ?????????????= ???????????????% ??????????## | | ????????????? ??????????????????? ?????????????? | | ????????????? #??????????????????????????????????? | | ?????????????????????????????????????????????????? | | ?????????????????????????????????????????????????? | | ?????????????????????????????????????????????????? | | ??????????????????????????????????????????????#### | | ?????????????????????????????????????????????## | | ????????????????????????????????????????????## | +----------------------------------------------------+ Best States ------------- Heat Dissipation 35 Energy Generation 10 Energy Capacity 250 Matter Stores 300 Matter Capacity 300 Sight Range 16 Terrain Scan Density 10 Propulsion Shielding 33 Evasion (%) 42 Recoil Reduction 2 Item Schematics ----------------- None Robot Schematics ------------------ None Fabricated ------------ Nothing Alien Tech Used ----------------- None Achievements -------------- None Challenges ------------ None Game ------ Seed PotentialProcessingUnit Manual? 0 Play Time 00:15:57 Cumulative 374.7 hours Start 2020.11.08 @ 21:05:02 End 2020.11.08 @ 21:19:03 Sessions 1 Manual Loads 0 Difficulty Rogue Special Mode Halloween2020/ForbiddenLore Game No. 429 Rogue 429 Adventurer 0 Explorer 0 Win Type - Total 32 Types 21/3/7/1/0/0/0/0/0 Lore% 77 Gallery% 87 Achievement% 58 Wizard Run 0 Options --------- ASCII 1 Keyboard 1 Movement Numpad Keybinds 0 Fullscreen 1 Font 18/SmallcapsGlow Map View 76x50 Tactical HUD 1 Map Filters NONE Filters NONE Steam 1 RUN: 3b99ba5e-20af-461e-9aff-e041402374a7